bitfinex/quotes_ETHUSD_20260125
["timestamp","ask_amount","ask_price","bid_price","bid_amount"]
[1769376094966,12.3460091,2820.1,2818.9,0.07440213]
[1769376095173,12.3460091,2820.1,2819.1,0.07440213]
[1769376096089,12.3460091,2820.1,2819.3,0.07440213]
[1769376096491,12.3460091,2820.1,2819.1,0.07440213]
[1769376096703,0.88652482,2820.0,2819.1,0.07440213]
[1769376097304,5.48326686,2819.8,2818.7,0.07440213]
[1769376097474,12.3460091,2819.7,2818.7,0.07440213]
[1769376097798,12.3460091,2819.7,2818.5,0.07640213]
[1769376097999,12.3460091,2819.7,2818.7,0.07440213]
[1769376098713,0.88665058,2819.6,2818.7,0.07440213]
[1769376098908,13.23265968,2819.6,2818.5,0.07640213]
[1769376099812,13.23265968,2819.6,2818.3,0.07440213]
[1769376100015,17.82927596,2819.2,2818.2,0.07440213]
[1769376100191,17.82927596,2819.2,2818.4,0.07440213]
[1769376101022,0.88680784,2819.1,2818.2,0.07440213]
[1769376101203,0.88680784,2819.1,2818.4,0.07440213]
[1769376101513,0.88680784,2819.1,2818.9,0.002]
[1769376101716,0.88680784,2819.1,2818.6,0.07440213]
[1769376101922,0.88680784,2819.1,2818.6,0.07640213]
[1769376102786,0.88680784,2819.1,2818.8,0.07440213]
[1769376102991,3.54699467,2819.3,2818.8,0.07440213]
[1769376102992,0.743,2819.5,2819.0,1e-08]
[1769376103199,0.743,2819.5,2818.8,0.07440213]
[1769376103416,0.743,2819.5,2819.0,0.07440213]
[1769376103615,0.743,2819.5,2819.0,0.01618108]
[1769376103828,0.743,2819.5,2819.1,1e-08]
[1769376104719,0.88661914,2819.7,2819.2,0.07440213]
[1769376105030,0.88661914,2819.7,2819.0,0.07440213]
[1769376105193,0.88661914,2819.7,2819.0,0.06554756]
[1769376105394,9.02965877,2819.8,2819.4,0.07440213]
[1769376105395,6.36987751,2819.8,2819.4,0.07440213]
[1769376105884,6.36987751,2819.8,2819.0,0.06554756]
[1769376106823,6.36987751,2819.8,2819.2,0.07440213]
[1769376109323,6.36987751,2819.8,2819.0,0.06554756]
[1769376109634,6.36987751,2819.8,2819.2,0.07440213]
[1769376111496,6.36987751,2819.8,2819.4,0.07440213]
[1769376111893,0.88757228,2819.9,2819.4,0.07440213]
[1769376112628,0.88757228,2819.9,2819.2,0.07440213]
[1769376112802,0.88757228,2819.9,2819.4,0.07440213]
[1769376113802,0.001,2819.9,2819.4,0.07440213]
[1769376114435,0.3557225,2819.9,2819.1,0.002]
[1769376114660,5.48326686,2819.2,2818.6,0.002]
[1769376116000,3.5470447,2819.3,2818.7,0.07440213]
[1769376116331,0.88679027,2819.2,2818.7,0.07440213]
[1769376116543,12.3460091,2819.7,2819.1,0.07440213]
[1769376116544,0.88661914,2819.7,2819.1,0.07440213]
[1769376116837,0.88661914,2819.7,2818.9,0.07440213]
[1769376116838,13.23262824,2819.7,2818.9,0.07440213]
[1769376117237,12.3460091,2819.5,2818.6,0.002]
[1769376117443,13.08014323,2819.5,2818.7,0.07440213]
[1769376117664,13.08014323,2819.5,2818.6,0.002]
[1769376117830,13.08014323,2819.5,2818.7,0.07440213]
[1769376118266,0.88671348,2819.4,2818.9,0.07440213]
[1769376121451,0.88671348,2819.4,2818.7,0.07440213]
[1769376121682,13.23272258,2819.4,2818.6,0.002]
[1769376121890,13.23272258,2819.4,2817.7,0.002]
[1769376122049,17.82927596,2818.8,2817.9,0.07440213]
[1769376122248,12.3460091,2818.8,2817.9,0.07440213]
[1769376122476,0.88693369,2818.7,2817.9,0.07440213]
[1769376123877,13.03876593,2818.7,2817.9,0.07440213]
[1769376124077,13.03876593,2818.7,2817.7,0.07640213]
[1769376124448,13.03876593,2818.7,2817.9,0.07440213]
[1769376125852,13.03876593,2818.7,2818.1,0.002]
[1769376126154,0.88693369,2818.7,2818.2,0.07440213]
[1769376127287,0.88693369,2818.7,2818.1,0.002]
[1769376128980,0.88693369,2818.7,2818.2,0.07440213]
[1769376129156,0.88693369,2818.7,2818.1,0.07640213]
[1769376129350,0.88693369,2818.7,2818.3,0.07440213]
[1769376130355,0.88693369,2818.7,2818.1,0.002]
[1769376131188,3.54773477,2818.8,2818.1,0.002]
[1769376136166,0.88696516,2818.6,2817.7,0.07640213]
[1769376136366,0.88696516,2818.6,2817.9,0.07440213]
[1769376137896,0.88696516,2818.6,2818.1,0.07440213]
[1769376138089,1.62992576,2818.8,2818.1,0.07440213]
[1769376138284,1.62992576,2818.8,2818.1,1.36828278]
[1769376138487,0.001,2818.6,2818.1,1.36828278]
[1769376139000,6.37001179,2819.4,2818.5,0.07440213]
[1769376139303,0.88674493,2819.3,2818.7,0.07440213]
[1769376139595,0.88674493,2819.3,2818.5,0.07440213]
[1769376139767,13.53689047,2819.3,2818.5,0.07440213]
[1769376142229,13.53689047,2819.3,2818.1,1.36828278]
[1769376142403,13.53689047,2819.3,2818.3,0.07440213]
[1769376143301,0.88674493,2819.3,2818.5,0.07440213]
[1769376143605,0.88674493,2819.3,2818.3,0.07440213]
[1769376143769,0.88674493,2819.3,2818.5,0.07440213]
[1769376149108,0.88674493,2819.3,2818.5,1.36628278]
[1769376149910,14.27987441,2819.4,2818.7,0.07440213]
[1769376150217,0.743,2819.4,2818.7,0.07440213]
[1769376150379,0.744,2819.6,2818.9,0.07440213]
[1769376150888,0.56735101,2819.6,2818.9,0.07440213]
[1769376151095,0.56735101,2819.6,2818.9,1.36628278]
[1769376151911,0.56735101,2819.6,2818.9,1.29188065]
[1769376152826,0.56735101,2819.6,2819.0,0.07440213]
[1769376152988,0.56735101,2819.6,2819.1,0.07440213]
[1769376153514,0.88755748,2819.9,2819.5,0.07440213]
[1769376153683,0.88755748,2819.9,2819.3,0.07440213]
[1769376154082,0.88755748,2819.9,2819.5,0.07440213]
[1769376154314,11.73658765,2820.6,2819.6,0.07440213]
[1769376154616,11.73658765,2820.4,2819.5,0.07440213]
[1769376154781,0.88643052,2820.3,2819.5,0.07440213]
[1769376154981,0.88643052,2820.3,2819.7,0.07440213]
[1769376158511,12.62282962,2821.0,2820.1,0.07440213]
[1769376158714,3.54509359,2820.9,2820.3,1.9e-07]
[1769376159220,0.88619798,2821.1,2820.5,0.07440213]
[1769376159421,1.62919798,2821.1,2820.5,0.07440213]
[1769376159624,13.36578563,2821.1,2820.3,1.9e-07]
[1769376159797,13.36578563,2821.1,2819.9,0.07440213]
[1769376160001,13.36578563,2821.1,2820.1,0.07440213]
[1769376160210,11.73658765,2821.0,2819.9,0.07440213]
[1769376160621,11.73658765,2820.8,2819.9,0.07440213]
[1769376160815,11.73658765,2820.8,2819.3,0.81740213]
[1769376160816,11.73658765,2820.8,2819.3,12.50654253]
[1769376161390,11.73658765,2820.8,2819.7,0.07440213]
[1769376162397,11.73658765,2820.8,2819.7,0.07640213]
[1769376162595,11.73758765,2820.8,2819.7,0.07640213]
[1769376163819,0.001,2820.8,2820.3,0.07440213]
[1769376165291,3.5441899,2821.6,2820.9,0.07440213]
[1769376165292,0.001,2821.4,2820.9,0.07440213]
[1769376165492,0.001,2821.4,2821.0,0.07440213]
[1769376165720,0.001,2821.4,2821.2,0.07440213]
[1769376166019,0.001,2821.4,2821.0,0.07440213]
[1769376171133,0.88586513,2822.1,2821.2,0.07440213]
[1769376171337,0.88586513,2822.1,2821.5,0.07440213]
[1769376172027,12.62245278,2822.1,2821.2,0.07440213]
[1769376172223,12.62245278,2822.1,2821.4,0.07440213]
[1769376174337,12.62245278,2822.1,2820.8,12.4321404]
[1769376174537,11.73658765,2821.9,2821.1,0.07440213]
[1769376175740,11.73658765,2821.9,2821.2,0.002]
[1769376175941,11.73758765,2821.9,2821.2,0.002]
[1769376176431,12.62254696,2821.8,2821.2,0.002]
[1769376178038,11.73658765,2822.9,2822.0,0.07440213]
[1769376178238,0.88564545,2822.8,2821.7,12.50654253]
[1769376178418,12.6222331,2822.8,2821.3,12.50654253]
[1769376178924,12.6222331,2822.8,2821.3,12.4321404]
[1769376179127,12.6222331,2822.8,2821.2,0.002]
[1769376181335,11.73658765,2822.0,2821.3,0.07440213]
[1769376181539,0.128,2822.6,2821.8,0.07440213]
[1769376181834,0.742,2822.5,2822.0,0.07440213]
[1769376182034,0.742,2822.5,2822.1,1e-08]
[1769376182252,11.73658765,2822.4,2821.5,0.07440213]
[1769376183305,13.52921204,2822.3,2821.5,0.07440213]
[1769376183507,13.52921204,2822.3,2821.3,0.07440213]
[1769376183733,13.52921204,2822.3,2821.5,0.07440213]
[1769376183937,12.64340969,2822.2,2821.5,0.07440213]
[1769376184334,12.64340969,2821.8,2821.0,0.002]
[1769376184542,0.88580235,2822.3,2821.0,0.002]
[1769376184543,12.64340969,2821.6,2821.0,0.002]
[1769376184906,12.64340969,2821.6,2820.3,12.68432438]
[1769376184907,12.64340969,2821.6,2820.3,0.07440213]
[1769376185147,12.77140969,2821.6,2820.3,0.07440213]
[1769376185464,12.64340969,2821.4,2819.8,0.002]
[1769376185736,12.64340969,2821.4,2820.2,0.07440213]
[1769376186537,12.64340969,2821.2,2820.2,0.07440213]
[1769376186732,12.64340969,2821.2,2819.8,0.002]
[1769376187048,12.64340969,2821.0,2819.9,0.07440213]
[1769376187212,12.64340969,2820.8,2819.9,0.07440213]
[1769376187413,12.64340969,2820.6,2819.8,0.002]
[1769376189423,12.64340969,2820.4,2819.8,0.002]
[1769376191243,0.88636766,2820.5,2820.1,0.07440213]
[1769376193051,0.88627339,2820.8,2819.9,0.07440213]
[1769376193227,0.88627339,2820.8,2820.1,0.07440213]
[1769376194954,0.88617914,2821.1,2820.5,0.07440213]
[1769376195117,0.88617914,2821.1,2820.5,0.04754455]
[1769376195426,0.88617914,2821.1,2820.3,0.07440213]
[1769376195629,13.52958883,2821.1,2819.8,0.002]
[1769376197519,13.52958883,2821.1,2818.9,1.29188065]
[1769376197520,0.128,2821.0,2818.9,1.29188065]
[1769376197724,0.128,2821.0,2816.1,0.002]
[1769376197725,11.98266418,2818.4,2816.1,0.002]
[1769376197950,11.98266418,2818.0,2816.3,9.70735067]
[1769376198118,11.98266418,2818.0,2816.8,0.742]
[1769376198322,11.98266418,2818.0,2816.9,0.742]
[1769376199451,11.98266418,2818.0,2817.0,0.742]
[1769376199766,0.88718549,2817.9,2817.0,0.742]
[1769376200863,3.548506,2818.1,2817.0,10.44935067]
[1769376201154,0.887154,2818.0,2817.1,1.04493507]
[1769376201553,0.8870281,2818.4,2817.0,0.742]
[1769376201859,12.86969228,2818.4,2817.0,0.742]
[1769376205966,12.86969228,2818.4,2817.0,8.67501118]
[1769376205967,0.8870281,2818.4,2817.0,8.67501118]
[1769376206130,0.8870281,2818.4,2817.2,7.93301118]
[1769376206656,0.8870281,2818.4,2816.7,0.07640213]
[1769376206657,0.8870281,2818.4,2817.3,0.743]
[1769376209468,3.54761581,2818.8,2817.5,6.15895498]
[1769376209783,0.88680784,2819.1,2817.7,2.60197671]
[1769376210365,12.86947202,2819.1,2817.7,2.60197671]
[1769376211645,12.86947202,2819.1,2817.0,2.60197671]
[1769376211955,12.86947202,2819.1,2817.1,1.63041837]
[1769376212141,12.86947202,2819.1,2817.1,4.23239508]
[1769376212335,11.98266418,2819.0,2817.2,0.81572117]
[1769376212762,11.98266418,2818.8,2817.2,0.78022495]
[1769376214156,13.75532454,2818.7,2817.3,0.91763386]
[1769376215776,13.75532454,2818.7,2817.4,2.60197671]
[1769376215965,13.75532454,2818.7,2817.5,0.03025728]
[1769376216155,13.75532454,2818.7,2817.6,0.2632234]
[1769376216358,13.75532454,2818.7,2817.7,0.03025513]
[1769376217655,13.75532454,2818.7,2817.6,0.2632234]
[1769376218275,0.001,2818.9,2817.6,0.2632234]
[1769376218276,3.54848817,2818.9,2817.6,3.75246994]
[1769376218476,3.54848817,2818.9,2817.6,3.82687207]
[1769376218678,3.54848817,2818.9,2817.7,0.737605]
[1769376219186,3.54848817,2818.9,2817.2,0.002]
[1769376219187,12.86839085,2818.8,2817.2,0.002]
[1769376219348,12.99639085,2818.8,2817.3,0.743]
[1769376219680,12.86839085,2818.6,2817.3,0.743]
[1769376220977,12.86839085,2818.4,2817.4,0.743]
[1769376221478,12.86839085,2818.7,2817.7,0.07440213]
[1769376221649,0.88691368,2818.8,2818.0,0.07440213]
[1769376221852,0.88691368,2818.8,2818.0,0.07273003]
[1769376222258,13.75530453,2818.8,2817.5,0.07440213]
[1769376222477,13.75530453,2818.8,2817.6,0.743]
[1769376223855,13.75530453,2818.8,2817.7,0.07440213]
[1769376224977,0.001,2818.6,2817.7,0.07440213]
[1769376226880,0.71125938,2818.8,2818.1,0.07440213]
[1769376227076,0.88787444,2818.9,2818.1,0.07440213]
[1769376227380,0.001,2818.9,2818.1,0.07440213]
[1769376227583,0.001,2818.9,2818.3,0.07440213]
[1769376227781,3.54647657,2820.0,2818.3,0.07440213]
[1769376228082,12.86839085,2819.6,2818.3,0.07440213]
[1769376228280,12.86839085,2819.6,2817.9,0.07440213]
[1769376228488,12.86839085,2819.6,2818.4,0.743]
[1769376229584,12.86839085,2819.4,2818.4,0.743]
[1769376231594,12.86839085,2819.2,2818.4,0.743]
[1769376233571,0.88680784,2819.1,2818.4,0.743]
[1769376235183,13.75518665,2819.2,2818.4,0.743]
[1769376235790,12.86839085,2819.5,2818.4,0.743]
[1769376236087,12.86839085,2819.5,2818.5,0.07440213]
[1769376237081,12.86839085,2819.5,2818.6,0.002]
[1769376237279,12.86939085,2819.2,2818.6,0.002]
[1769376237684,12.86939085,2819.2,2818.7,0.57003295]
[1769376237886,12.86839085,2819.0,2818.7,0.57003295]
[1769376238202,12.86839085,2819.0,2818.6,0.745]
[1769376239705,12.86839085,2819.0,2818.5,0.743]
[1769376239909,0.88687076,2818.9,2818.5,0.743]
[1769376241692,0.88687076,2818.9,2818.4,0.002]
[1769376241693,14.12270927,2818.9,2817.7,0.07440213]
[1769376241997,14.12270927,2818.9,2817.8,0.743]
[1769376242403,14.12270927,2818.9,2817.5,0.07640213]
[1769376242609,14.12270927,2818.9,2817.6,0.743]
[1769376242925,12.86839085,2818.7,2817.6,0.743]
[1769376244227,13.17941764,2818.6,2817.6,0.743]
[1769376245623,13.17941764,2818.6,2817.7,0.07440213]
[1769376246400,13.17941764,2818.6,2817.5,0.07640213]
[1769376246626,13.17941764,2818.6,2817.5,0.002]
[1769376246924,12.29245248,2818.4,2817.5,0.002]
[1769376249138,12.29245248,2818.2,2817.8,0.002]
[1769376249933,3.91545106,2818.5,2817.8,0.002]
[1769376249934,0.88704671,2818.4,2817.8,0.002]
[1769376250230,13.17949919,2818.4,2817.8,0.002]
[1769376252822,13.17949473,2818.4,2817.8,0.002]
[1769376253019,12.29245248,2818.4,2817.8,0.002]
[1769376253238,0.8870194,2818.5,2817.8,0.002]
[1769376253533,13.17940318,2818.7,2817.9,0.07440213]
[1769376255530,13.17940318,2818.7,2817.8,0.002]
[1769376255712,13.17940318,2818.7,2817.8,0.745]
[1769376255915,13.17940318,2818.7,2817.8,0.002]
[1769376261033,12.07601584,2818.4,2817.8,0.002]
[1769376262273,12.07601584,2818.2,2817.3,0.002]
[1769376262474,0.88705957,2818.3,2816.7,0.002]
[1769376262475,0.2335703,2817.9,2816.7,0.002]
[1769376262623,12.07601584,2817.8,2816.7,0.002]
[1769376262979,12.07601584,2817.6,2816.4,1e-08]
[1769376264322,12.07601584,2817.4,2816.4,1e-08]
[1769376265326,12.07601584,2817.2,2816.4,1e-08]
[1769376266618,12.07601584,2817.0,2816.4,1e-08]
[1769376268138,0.88742453,2817.2,2816.4,1e-08]
[1769376268451,0.88742453,2817.2,2816.5,0.07440213]
[1769376269150,12.9634008,2817.3,2816.5,0.07440213]
[1769376270152,12.9634008,2817.3,2816.4,1e-08]
[1769376270451,12.07601584,2817.2,2816.4,1e-08]
[1769376271951,0.88743743,2817.1,2816.4,1e-08]
[1769376272126,12.07601584,2817.0,2816.4,1e-08]
[1769376272830,12.07601584,2817.7,2816.5,0.07440213]
[1769376274029,12.53025668,2817.5,2816.5,0.07440213]
[1769376275480,0.88726408,2817.7,2816.9,0.07440213]
[1769376277669,0.88726408,2817.7,2816.5,0.07440213]
[1769376277670,13.41752076,2817.7,2816.4,1e-08]
[1769376277874,12.53025668,2817.6,2816.4,1e-08]
[1769376278766,12.53025668,2817.4,2816.5,0.07440213]
[1769376280704,0.88737443,2817.3,2816.5,0.07440213]
[1769376281369,13.41763111,2817.3,2816.5,0.07440213]
[1769376283709,13.41863111,2817.3,2816.5,0.07440213]
[1769376283874,12.53125668,2817.3,2816.7,0.07440213]
[1769376284073,12.28650556,2817.3,2816.9,0.07440213]
[1769376284402,13.24093555,2817.5,2816.9,0.07440213]
[1769376284805,12.53025668,2817.5,2816.9,0.07440213]
[1769376285007,13.41734773,2818.2,2817.1,0.07440213]
[1769376285183,13.41734773,2818.2,2816.9,0.07440213]
[1769376290114,13.41734773,2818.2,2816.7,0.07440213]
[1769376290306,13.41734773,2818.2,2816.7,0.81740213]
[1769376293927,13.41734773,2818.2,2816.9,0.07440213]
[1769376294130,13.41734773,2818.2,2817.1,0.07440213]
[1769376294317,12.53025668,2818.1,2817.1,0.07440213]
[1769376294714,12.88495668,2818.1,2817.1,0.07440213]
[1769376294918,3.6763642,2818.3,2817.3,3.10577896]
[1769376294919,12.53025668,2818.3,2817.3,3.10577896]
[1769376295129,0.8870281,2818.4,2817.5,0.07440213]
[1769376295426,13.41728478,2818.4,2817.5,0.07440213]
[1769376295608,13.23963776,2818.4,2817.5,0.39242024]
[1769376296522,13.23963776,2818.4,2817.5,0.07440213]
[1769376296718,13.23963776,2818.4,2817.3,0.07440213]
[1769376297732,13.23963776,2818.4,2817.5,0.07440213]
[1769376301031,13.23963776,2818.4,2817.7,0.07440213]
[1769376301937,0.88799921,2818.5,2817.7,0.07440213]
[1769376302115,0.001,2818.5,2817.8,0.3105779]
[1769376302428,12.53125668,2818.5,2817.8,0.3105779]
[1769376302629,0.88592757,2818.8,2817.9,3.10577896]
[1769376303726,12.63889296,2819.0,2817.9,3.10577896]
[1769376304036,12.63889296,2819.0,2818.1,0.07440213]
[1769376307538,11.75305366,2818.8,2818.1,0.07440213]
[1769376308235,12.63997196,2818.8,2818.1,0.07440213]
[1769376309007,0.001,2818.8,2818.1,0.07440213]
[1769376309233,0.001,2818.8,2818.1,3.10577896]
[1769376309435,0.001,2818.8,2818.3,0.07440213]
[1769376309609,11.75205366,2819.1,2818.3,0.07440213]
[1769376309804,0.001,2819.2,2818.3,0.07440213]
[1769376310037,0.001,2819.2,2818.7,0.07440213]
[1769376310218,0.001,2819.2,2818.5,3.10477896]
[1769376310536,0.001,2819.2,2818.7,0.07440213]
[1769376311932,11.75205366,2819.1,2818.2,0.3105779]
[1769376312133,11.75205366,2819.1,2818.1,0.81740213]
[1769376312542,12.63886308,2819.1,2818.3,0.07440213]
[1769376313520,0.001,2819.2,2818.5,0.07440213]
[1769376314444,0.001,2819.2,2818.7,0.07440213]
[1769376317442,0.001,2819.2,2818.5,0.07440213]
[1769376317660,0.001,2819.2,2818.7,0.07440213]
[1769376317836,0.001,2819.2,2818.1,0.07440213]
[1769376317837,11.70114924,2819.2,2818.1,0.07440213]
[1769376318158,11.70114924,2819.2,2818.2,0.743]
[1769376318461,11.70014924,2819.0,2818.2,0.743]
[1769376318662,11.70014924,2819.0,2818.3,0.07440213]
[1769376319455,11.70014924,2819.0,2818.3,0.07640213]
[1769376319754,11.70114924,2819.0,2818.3,0.07640213]
[1769376331667,11.70114924,2819.0,2818.5,0.002]
[1769376332269,0.001,2818.8,2818.5,0.002]
[1769376332453,11.52350222,2819.0,2818.5,0.002]
[1769376335149,11.52350222,2819.0,2818.5,0.745]
[1769376338588,0.001,2819.2,2818.6,0.07440213]
[1769376338802,0.001,2819.2,2818.8,0.07440213]
[1769376339083,0.71003661,2819.5,2818.9,1.27936461]
[1769376339279,12.88255836,2819.5,2818.9,1.27936461]
[1769376339647,0.88665405,2819.6,2818.9,1.27936461]
[1769376339881,3.67369633,2820.4,2818.9,1.27936461]
[1769376339882,12.17252175,2819.7,2818.9,13.99860855]
[1769376340078,12.17252175,2819.7,2819.0,1.40730107]
[1769376340284,13.05914377,2819.7,2819.0,1.40730107]
[1769376340474,13.05914377,2819.7,2818.8,0.07440213]
[1769376341686,12.17252175,2819.7,2818.8,12.79364607]
[1769376342708,13.05914193,2819.7,2818.8,12.79364607]
[1769376342886,12.17252175,2819.9,2818.8,12.79364607]
[1769376343085,12.17252175,2819.9,2819.0,12.79364607]
[1769376343289,12.17252175,2819.9,2819.1,13.99860855]
[1769376343607,12.17252175,2819.9,2819.2,0.743]
[1769376344501,11.99487473,2820.2,2819.2,13.46224394]
[1769376344703,11.99487473,2820.2,2819.2,13.53664607]
[1769376345083,13.05901513,2820.1,2819.2,13.46224394]
[1769376345280,13.05901513,2820.1,2818.7,0.002]
[1769376345606,13.56951843,2820.1,2818.8,0.743]
[1769376345909,13.05901513,2820.1,2818.8,0.743]
[1769376346330,13.05901513,2820.1,2818.7,0.002]
[1769376346331,13.63340991,2820.1,2818.7,0.002]
[1769376346532,12.17252175,2819.9,2818.7,0.002]
[1769376346683,12.17252175,2819.7,2818.7,0.002]
[1769376347327,12.17252175,2819.5,2818.7,0.002]
[1769376349847,12.17252175,2819.3,2818.5,0.002]
[1769376350045,12.17252175,2819.3,2818.5,0.745]
[1769376350202,12.17252175,2819.1,2818.5,0.745]
[1769376351601,12.06913213,2819.1,2818.5,0.745]
[1769376352311,0.8868393,2819.0,2818.5,0.745]
[1769376352536,13.05936105,2819.0,2818.5,0.745]
[1769376353101,12.17252175,2819.4,2818.6,0.07440213]
[1769376353300,12.17252175,2819.4,2818.7,1.35386461]
[1769376353806,0.88661914,2819.7,2818.8,0.07440213]
[1769376354011,12.17252175,2819.6,2818.8,0.07440213]
[1769376354728,12.17252175,2819.6,2818.7,1.35386461]
[1769376354729,13.05920378,2819.5,2818.7,1.35386461]
[1769376354899,13.05920378,2819.5,2818.6,0.743]
[1769376356534,13.05920378,2819.5,2818.7,0.002]
[1769376356725,13.06020378,2819.5,2818.7,0.002]
[1769376363039,13.06020378,2819.5,2818.7,0.745]
[1769376368435,11.81155331,2819.3,2818.7,0.745]
[1769376368939,0.88677639,2819.2,2818.7,0.745]
[1769376369238,12.6973297,2819.2,2818.7,0.745]
[1769376369537,12.6973297,2819.2,2818.7,0.002]
[1769376370128,11.81055331,2819.1,2818.5,0.745]
[1769376370346,11.81055331,2819.1,2818.4,0.743]
[1769376370547,11.81055331,2819.1,2818.3,0.002]
[1769376370927,11.81055331,2818.9,2818.3,0.002]
[1769376371326,0.8868393,2819.0,2818.3,0.002]
[1769376371945,0.88682654,2819.1,2818.3,12.65460191]
[1769376372115,0.88682654,2819.1,2818.5,0.07440213]
[1769376372741,0.88679916,2819.2,2818.5,0.07440213]
[1769376373436,11.81155331,2819.3,2818.7,0.07440213]
[1769376373637,12.69830684,2819.3,2818.5,0.07440213]
[1769376373820,0.001,2819.3,2818.7,12.72700404]
[1769376374017,0.88774674,2819.3,2818.8,0.743]
[1769376374218,12.69830005,2819.3,2818.8,0.743]
[1769376375833,12.69830005,2819.3,2818.7,0.07440213]
[1769376376029,12.69830005,2819.3,2818.8,1e-08]
[1769376378645,12.69830005,2819.3,2818.6,1.2727004]
[1769376378941,12.69830005,2819.3,2818.4,0.743]
[1769376379844,12.69830005,2819.3,2818.9,0.002]
[1769376380149,12.69830005,2819.3,2818.6,0.002]
[1769376381257,12.69830005,2819.3,2818.3,0.002]
[1769376383247,12.69830005,2819.3,2818.0,0.002]
[1769376383423,12.69830005,2819.3,2818.5,0.07440213]
[1769376384849,12.69830005,2819.3,2818.2,12.19810155]
[1769376385051,12.69830005,2819.3,2818.3,0.07440213]
[1769376385350,0.88774674,2819.3,2818.7,0.07440213]
[1769376385550,0.88774674,2819.3,2818.7,1.30909271]
[1769376385754,0.88774674,2819.3,2818.9,1e-08]
[1769376386156,0.001,2819.5,2818.9,1e-08]
[1769376386321,0.88770182,2819.5,2818.9,1e-08]
[1769376386515,0.001,2819.5,2818.9,12.19810156]
[1769376386847,0.001,2819.5,2819.1,0.07440213]
[1769376387053,13.54502753,2820.1,2819.3,0.07440213]
[1769376391757,0.001,2819.9,2819.3,0.07440213]
[1769376393758,12.92855038,2819.9,2819.1,0.743]
[1769376394149,12.92855038,2819.9,2818.7,0.07440213]
[1769376394334,12.92855038,2819.9,2818.5,12.39064558]
[1769376394530,12.92855038,2819.9,2818.1,0.81740213]
[1769376394757,12.92855038,2819.9,2818.1,13.13364558]
[1769376395332,12.92755038,2819.7,2818.1,13.13364558]
[1769376395533,13.67055038,2819.7,2818.2,1.31356456]
[1769376396735,13.67055038,2819.7,2818.3,0.07440213]
[1769376397283,13.67055038,2819.7,2818.3,12.39064558]
[1769376398268,12.92755038,2819.5,2818.3,12.39064558]
[1769376398886,0.88665058,2819.6,2818.7,12.39064558]
[1769376399064,13.81420096,2819.6,2818.7,0.07440213]
[1769376399447,13.81420096,2819.6,2818.5,0.07440213]
[1769376402064,13.81420096,2819.6,2818.7,12.39064558]
[1769376404263,13.81420096,2819.6,2818.7,0.07440213]
[1769376404465,12.92755038,2819.5,2818.7,0.07440213]
[1769376404948,0.88671348,2819.4,2818.7,0.07440213]
[1769376406244,0.88670462,2819.5,2818.9,0.07440213]
[1769376406445,0.88670462,2819.5,2818.7,13.13364558]
[1769376406648,13.814255,2819.5,2818.8,1.31336456]
[1769376406877,13.814255,2819.5,2818.7,0.81740213]
[1769376409884,13.814255,2819.5,2818.7,0.07440213]
[1769376410083,13.814255,2819.5,2818.7,0.81740213]
[1769376411285,13.814255,2819.5,2818.9,0.07440213]
[1769376414661,0.88670462,2819.5,2818.9,12.39064558]
[1769376414878,0.88670462,2819.5,2818.9,13.71145035]
[1769376415359,0.88670462,2819.5,2819.1,0.07440213]
[1769376415559,0.88667093,2819.6,2819.1,0.07440213]
[1769376416487,0.001,2819.7,2819.1,0.07440213]
[1769376416688,12.92855038,2819.7,2819.1,0.07440213]
[1769376418367,0.88665058,2819.6,2819.1,0.07440213]
[1769376419768,0.88764198,2819.7,2819.1,1.37878525]
[1769376420499,0.001,2819.7,2819.1,1.37878525]
[1769376420796,12.92855038,2819.7,2818.9,0.81940213]
[1769376420999,12.92855038,2819.7,2818.9,0.002]
[1769376422100,12.92855038,2819.7,2818.3,0.002]
[1769376422284,12.92755038,2819.3,2818.3,0.002]
[1769376422485,12.92755038,2819.1,2818.3,0.002]
[1769376425097,12.66967387,2818.9,2818.3,0.002]
[1769376425301,12.66967387,2818.9,2818.0,0.07640213]
[1769376427105,12.66967387,2818.9,2818.5,0.002]
[1769376427284,12.66967387,2818.9,2818.3,0.002]
[1769376427285,13.55657609,2818.8,2818.3,0.002]
[1769376427484,13.55657609,2818.8,2818.0,0.07640213]
[1769376427686,13.55657609,2818.8,2818.0,1.43709693]
[1769376429286,13.55657609,2818.8,2818.0,0.07640213]
[1769376431110,13.55657609,2818.8,2818.2,0.07440213]
[1769376431478,13.55657609,2818.8,2818.0,0.07640213]
[1769376432106,13.55657609,2818.8,2817.5,0.002]
[1769376432307,13.55657609,2818.8,2817.7,0.07440213]
[1769376432512,12.66967387,2818.6,2817.7,12.861948]
[1769376433530,0.88699662,2818.5,2817.7,12.861948]
[1769376433828,13.55667049,2818.5,2817.7,12.861948]
[1769376435121,0.88699662,2818.5,2817.7,12.861948]
[1769376435595,3.54798651,2818.6,2817.7,12.861948]
[1769376435596,12.5590772,2818.6,2817.7,12.861948]
[1769376435796,1.25590772,2818.5,2817.7,12.861948]
[1769376436442,1.25590772,2818.5,2817.9,0.07440213]
[1769376436926,3.54760891,2819.2,2818.3,11.92214803]
[1769376437125,0.88677639,2819.2,2818.5,11.92214803]
[1769376437344,0.88668203,2819.5,2818.9,1e-08]
[1769376437496,0.44334102,2819.4,2818.9,1e-08]
[1769376437707,1.33008474,2819.4,2818.9,1e-08]
[1769376437907,0.88670462,2819.5,2818.9,1e-08]
[1769376438450,13.44578182,2819.5,2818.9,1e-08]
[1769376439934,13.44578182,2819.5,2818.7,0.07440213]
[1769376440334,0.88670462,2819.5,2818.9,0.07440213]
[1769376440546,0.88667252,2819.6,2819.1,1e-08]
[1769376441856,0.001,2819.7,2819.1,1e-08]
[1769376442652,12.5600772,2819.7,2818.9,0.07440213]
[1769376443253,12.5600772,2819.7,2818.7,0.07440213]
[1769376443416,12.5600772,2819.7,2818.8,0.743]
[1769376443617,12.5600772,2819.7,2818.5,0.07440213]
[1769376443832,12.5600772,2819.7,2818.6,0.743]
[1769376444123,12.5590772,2819.5,2818.6,2.0095148]
[1769376444524,12.5590772,2819.5,2818.7,0.07440213]
[1769376447024,0.88671348,2819.4,2818.7,0.07440213]
[1769376449155,0.88671348,2819.4,2818.7,0.81740213]
[1769376452655,0.88671348,2819.4,2818.9,0.002]
[1769376452814,0.001,2819.3,2818.7,0.81740213]
[1769376453019,0.001,2819.3,2818.8,1.39316628]
[1769376455522,0.001,2819.3,2818.8,2.13616628]
[1769376455925,0.001,2819.7,2819.1,0.07440213]